bitfinex-derivatives/quotes_ETHF0:USTF0_20250905
["timestamp","ask_amount","ask_price","bid_price","bid_amount"]
[1757040283492,0.8349,4310.5,4309.8,0.237]
[1757040284093,0.8349,4310.5,4309.9,0.3066]
[1757040284298,0.8349,4310.5,4309.6,3.2078]
[1757040284299,0.7071,4309.7,4309.6,0.4184]
[1757040284498,0.7071,4309.7,4309.6,0.725]
[1757040284694,0.7071,4309.7,4309.6,0.4184]
[1757040285206,0.7071,4309.7,4309.6,0.2033]
[1757040285500,0.7071,4309.7,4309.6,0.4184]
[1757040285701,0.7071,4309.7,4309.6,0.2033]
[1757040287098,0.7071,4309.7,4309.6,0.4184]
[1757040287299,0.7071,4309.7,4309.6,0.725]
[1757040287698,0.7071,4309.7,4309.6,0.4184]
[1757040288093,0.1278,4310.0,4309.6,0.7275]
[1757040288299,3.9303,4310.3,4310.2,0.2029]
[1757040288906,0.1178,4310.0,4309.3,0.3091]
[1757040289204,0.7225,4309.4,4309.3,0.7126]
[1757040289407,0.7225,4309.4,4309.3,0.9496]
[1757040292402,0.3202,4309.4,4308.4,0.5461]
[1757040292698,0.3202,4309.4,4308.7,0.3091]
[1757040292904,0.2039,4308.8,4308.7,0.7126]
[1757040293900,0.3202,4309.0,4308.0,0.1251]
[1757040293901,0.1178,4309.0,4308.2,0.4035]
[1757040294098,0.7225,4308.9,4308.8,0.7126]
[1757040294601,0.5241,4309.2,4309.1,0.4035]
[1757040294804,0.5241,4309.2,4309.1,0.7126]
[1757040295307,0.7225,4309.2,4309.1,0.7126]
[1757040295708,0.7225,4309.2,4309.1,0.4035]
[1757040295910,0.116,4309.6,4309.5,0.1251]
[1757040296106,3.6558,4310.5,4309.5,0.7656]
[1757040296306,4.0581,4310.5,4310.4,0.2029]
[1757040296898,4.0581,4310.5,4310.4,0.4035]
[1757040297105,3.9303,4310.5,4310.4,0.7126]
[1757040298905,4.0481,4310.5,4310.4,0.7126]
[1757040299109,3.9303,4310.5,4310.4,0.7126]
[1757040299713,0.2039,4310.5,4310.4,0.7126]
[1757040300012,0.1159,4310.7,4310.4,0.4035]
[1757040300206,0.2039,4310.6,4310.3,0.237]
[1757040300406,0.1159,4310.7,4310.6,0.4035]
[1757040300606,3.528,4311.0,4310.6,0.4035]
[1757040300809,0.3202,4310.9,4310.5,0.1251]
[1757040301011,0.7225,4310.9,4310.8,0.7126]
[1757040301212,0.7225,4310.9,4310.0,0.4342]
[1757040301416,0.7225,4310.9,4310.1,0.237]
[1757040301614,0.7225,4310.2,4310.1,0.9496]
[1757040301809,0.8384,4310.8,4310.7,0.4035]
[1757040302019,0.8384,4310.8,4310.7,0.7126]
[1757040302810,0.7225,4310.8,4310.7,0.7126]
[1757040306520,0.7225,4310.8,4310.7,0.2029]
[1757040307807,0.7225,4310.8,4310.7,0.7126]
[1757040308524,0.7225,4310.8,4310.7,0.4035]
[1757040308819,0.7225,4310.8,4310.7,0.7126]
[1757040309316,0.2039,4310.8,4310.7,0.7126]
[1757040309518,0.1159,4311.0,4310.8,0.3091]
[1757040309722,0.1159,4311.0,4310.9,0.7126]
[1757040310024,0.2039,4311.0,4310.9,0.7126]
[1757040310322,0.5241,4311.0,4310.9,0.7126]
[1757040310523,0.7225,4311.0,4310.9,0.7126]
[1757040310911,0.8403,4311.0,4310.7,3.2078]
[1757040311112,0.8403,4311.0,4309.6,0.3091]
[1757040311113,0.7225,4310.2,4309.6,0.3091]
[1757040311318,0.7225,4310.2,4309.7,0.237]
[1757040311517,0.3202,4310.1,4309.8,0.3091]
[1757040311717,0.5186,4310.1,4310.0,0.2029]
[1757040312021,0.5186,4310.1,4310.0,0.4035]
[1757040312022,0.7225,4310.1,4310.0,0.4035]
[1757040312520,0.7225,4310.1,4310.0,0.7126]
[1757040312920,3.528,4310.8,4310.1,0.3091]
[1757040313122,0.1178,4311.5,4310.8,0.3091]
[1757040313123,3.2078,4311.3,4310.8,0.3091]
[1757040313417,0.8384,4311.2,4311.1,0.4035]
[1757040313617,0.5241,4310.1,4310.0,4.2825]
[1757040313818,0.1178,4310.5,4310.0,4.2825]
[1757040314014,0.5241,4310.4,4310.3,0.7126]
[1757040314514,0.7225,4310.4,4310.3,0.2029]
[1757040314715,0.7225,4310.4,4310.3,0.237]
[1757040315618,0.7225,4310.4,4310.3,0.4399]
[1757040315921,0.7225,4310.4,4310.3,0.6405]
[1757040316126,0.2039,4310.4,4310.3,0.9496]
[1757040316430,0.7225,4310.4,4310.3,0.9496]
[1757040316625,0.7225,4310.4,4310.3,0.6405]
[1757040317726,0.7225,4310.4,4310.3,0.9496]
[1757040317922,0.5241,4310.4,4310.3,0.9496]
[1757040318125,0.1159,4310.6,4310.5,0.402]
[1757040318326,3.5286,4310.8,4310.5,0.6932]
[1757040318524,0.2104,4310.6,4310.5,0.6932]
[1757040319134,0.2104,4310.9,4310.8,0.402]
[1757040319430,0.7255,4310.9,4310.8,0.5231]
[1757040319629,0.7255,4310.9,4310.8,0.3285]
[1757040321530,0.7255,4310.9,4310.8,0.5231]
[1757040321732,0.7255,4310.9,4310.8,0.8143]
[1757040323028,0.7255,4310.9,4310.8,0.5231]
[1757040323428,0.7255,4310.9,4310.8,0.8143]
[1757040323833,0.7255,4310.9,4310.8,0.5231]
[1757040324826,0.4047,4310.9,4310.1,0.41757]
[1757040325028,0.7255,4309.8,4309.7,2.89306829]
[1757040325233,3.9333,4309.8,4309.7,2.57036829]
[1757040325434,3.9333,4309.8,4308.7,0.2912]
[1757040325435,7.9333,4309.8,4308.7,0.2912]
[1757040325637,0.7255,4308.8,4308.7,0.4986]
[1757040325833,0.4047,4308.8,4308.7,0.6932]
[1757040326327,0.7255,4308.8,4308.7,0.6932]
[1757040330125,0.3208,4308.9,4308.7,0.639]
[1757040330329,0.4047,4308.8,4308.7,0.639]
[1757040330519,0.7255,4308.8,4308.7,0.4444]
[1757040330723,0.7255,4308.8,4308.7,0.237]
[1757040331323,0.7255,4308.8,4308.7,0.4444]
[1757040331524,0.7255,4308.8,4308.7,0.9302]
[1757040331927,0.2104,4308.8,4308.7,0.9302]
[1757040332133,0.2104,4309.2,4309.1,0.6932]
[1757040332352,0.2104,4309.2,4309.1,0.9302]
[1757040333036,0.5312,4309.2,4309.1,0.9302]
[1757040333730,0.3208,4309.7,4309.1,0.639]
[1757040333931,0.7255,4309.7,4309.6,0.6932]
[1757040336230,0.7255,4309.7,4309.6,0.2912]
[1757040336425,0.7255,4309.7,4309.5,0.237]
[1757040336426,0.4047,4309.7,4309.5,0.237]
[1757040336635,0.7255,4309.6,4309.5,0.4444]
[1757040336935,0.7255,4310.2,4310.1,0.6932]
[1757040337135,0.2104,4310.2,4310.1,0.6932]
[1757040337733,3.2078,4310.9,4310.2,0.2912]
[1757040337938,0.7255,4310.3,4310.2,0.6932]
[1757040338143,0.5206,4310.7,4310.6,0.402]
[1757040338340,0.5206,4310.7,4310.6,0.9302]
[1757040338739,0.8414,4310.7,4310.6,0.9302]
[1757040339242,0.7255,4310.7,4310.6,0.9302]
[1757040339441,0.7255,4310.7,4310.6,0.4444]
[1757040341145,0.7255,4310.7,4310.3,0.2912]
[1757040341339,0.7255,4310.7,4310.0,0.1211]
[1757040341340,0.1288,4310.5,4310.4,0.237]
[1757040341650,0.8543,4310.5,4310.4,0.237]
[1757040342034,0.8543,4310.5,4310.4,0.4444]
[1757040342435,0.7255,4310.5,4310.4,0.7356]
[1757040342637,0.7255,4310.5,4310.4,0.9302]
[1757040343742,3.2078,4310.9,4310.4,0.9302]
[1757040343743,3.2078,4310.9,4310.8,0.6932]
[1757040345147,3.4182,4310.9,4310.8,0.6932]
[1757040347341,3.9333,4310.9,4310.8,0.6932]
[1757040347742,3.6125,4310.9,4310.8,0.6932]
[1757040348351,0.1159,4311.3,4310.5,0.1211]
[1757040348352,0.5264,4311.3,4311.2,0.734]
[1757040348550,0.1212,4311.0,4310.7,3.2078]
[1757040348745,0.7087,4310.3,4310.2,3.2078]
[1757040348956,0.7087,4309.8,4309.7,2.90824724]
[1757040349147,0.2982,4309.9,4309.6,0.5272]
[1757040349451,0.7087,4310.0,4309.9,0.4132]
[1757040349647,0.7087,4310.0,4309.9,0.734]
[1757040350451,0.8299,4310.0,4309.9,0.2068]
[1757040351048,0.8299,4310.0,4309.9,0.5276]
[1757040351249,0.7087,4310.0,4309.9,0.5276]
[1757040351445,0.1159,4310.4,4310.3,0.4132]
[1757040351645,0.5063,4310.6,4310.5,0.8599]
[1757040352152,0.2081,4310.6,4310.5,0.8599]
[1757040353752,0.7087,4310.9,4310.8,0.734]
[1757040353955,0.1212,4311.0,4310.5,0.3208]
[1757040354255,0.2081,4310.7,4310.6,0.734]
[1757040354747,3.506,4311.4,4310.6,0.4132]
[1757040354943,3.9165,4311.4,4311.3,0.2068]
[1757040355144,3.9165,4311.4,4311.1,0.237]
[1757040356450,0.4105,4311.3,4311.2,0.734]
[1757040357157,3.2078,4311.4,4311.2,0.4132]
[1757040357353,3.2078,4311.4,4311.3,0.734]
[1757040357648,3.4159,4311.4,4311.3,0.734]
[1757040358642,0.2081,4311.4,4311.3,0.734]
[1757040359950,0.4141,4311.7,4311.3,0.734]
[1757040360151,0.2081,4311.6,4311.5,0.8599]
[1757040360383,0.7087,4311.6,4311.5,0.8599]
[1757040360553,0.7087,4311.6,4311.5,0.734]
[1757040361257,0.4105,4311.6,4311.5,0.8599]
[1757040361946,0.7087,4311.6,4311.5,0.8599]
[1757040362551,0.7087,4311.1,4310.8,0.3208]
[1757040362751,0.7087,4311.1,4311.0,0.734]
[1757040363952,0.7087,4311.1,4311.0,0.8599]
[1757040364155,0.4105,4311.1,4311.0,0.8599]
[1757040364357,0.2982,4311.4,4311.0,0.5391]
[1757040364552,0.7087,4311.4,4311.3,0.734]
[1757040364858,0.2081,4311.4,4311.3,0.734]
[1757040365256,0.4105,4311.4,4311.3,0.734]
[1757040365558,0.7087,4311.4,4311.3,0.734]
[1757040366957,0.2982,4311.8,4311.3,0.734]
[1757040367158,0.1159,4311.9,4311.4,0.3208]
[1757040367362,0.8246,4311.9,4311.8,0.734]
[1757040367661,0.7087,4311.9,4311.8,0.734]
[1757040368762,0.4105,4311.9,4311.8,0.734]
[1757040369756,3.2078,4312.0,4311.8,0.734]
[1757040369954,0.1158,4312.1,4312.0,0.5391]
[1757040370158,0.5063,4312.1,4312.0,0.8599]
[1757040370459,0.7087,4312.1,4312.0,0.8599]
[1757040370859,0.4105,4312.1,4312.0,0.8599]
[1757040371464,0.7087,4312.1,4312.0,0.8599]
[1757040371865,0.4105,4312.1,4312.0,0.8599]
[1757040372065,0.2081,4312.1,4312.0,0.8599]
[1757040372258,0.1158,4312.3,4312.2,0.4132]
[1757040372458,3.506,4312.7,4312.2,0.6502]
[1757040372666,0.5063,4312.6,4312.5,0.4132]
[1757040372867,0.5063,4312.6,4312.5,0.734]
[1757040373168,0.5063,4312.6,4312.5,0.8599]
[1757040374270,0.2081,4312.6,4312.5,0.8599]
[1757040375968,0.5063,4312.6,4312.5,0.8599]
[1757040376363,0.2081,4312.6,4312.5,0.8599]
[1757040378069,0.1158,4312.8,4312.7,0.7161]
[1757040378270,0.3207,4313.3,4313.0,0.1246]
[1757040378472,0.7198,4313.3,4313.2,0.7161]
[1757040379075,0.3991,4313.3,4313.2,0.7161]
[1757040379469,0.7198,4313.3,4313.2,0.7161]
[1757040379871,0.1158,4313.5,4313.2,0.4204]
[1757040380072,0.3132,4313.5,4313.4,0.7161]
[1757040380378,0.1974,4313.5,4313.4,0.7161]
[1757040381678,0.1158,4313.7,4313.5,0.1246]
[1757040381978,0.3132,4313.7,4313.6,0.7161]
[1757040382170,0.1974,4313.7,4313.6,0.7161]
[1757040382370,0.7198,4313.7,4313.6,0.7161]
[1757040386778,0.3991,4313.7,4313.6,0.7161]
[1757040387080,0.1974,4313.7,4313.6,0.7161]
[1757040387475,3.2078,4313.8,4313.6,0.4204]
[1757040387676,3.2078,4313.8,4313.7,0.7161]
[1757040387677,3.6069,4313.8,4313.7,0.7161]
[1757040387882,3.9276,4313.8,4313.7,0.7161]
[1757040393092,0.7198,4313.8,4313.7,0.7161]
[1757040394488,0.7198,4313.8,4313.1,0.2957]
[1757040394685,0.3207,4313.7,4313.2,0.237]
[1757040394886,0.3991,4313.3,4313.2,1.18492999]
[1757040395087,3.2078,4313.8,4313.2,0.6574]
[1757040395286,0.7198,4313.7,4313.6,0.4204]
[1757040395491,0.7198,4313.7,4313.6,0.7161]
[1757040404499,0.63092,4313.7,4312.5,0.1259]
[1757040404704,0.63092,4313.7,4312.3,2.48784724]
[1757040404705,0.1252,4312.5,4312.3,2.48784724]
[1757040404900,0.1252,4312.5,4311.5,4.29292875]
[1757040404901,0.3991,4312.0,4311.9,0.6564]
[1757040405108,0.3207,4312.4,4311.9,0.6564]
[1757040405302,0.1252,4312.5,4311.9,0.6564]
[1757040405503,0.845,4312.5,4312.4,0.4204]
[1757040405898,0.845,4312.5,4312.4,0.2069]
[1757040406199,0.845,4312.5,4311.9,0.236]
[1757040406404,0.3207,4312.5,4312.4,0.4204]
[1757040406609,0.4365,4312.7,4312.4,0.4204]
[1757040406810,0.6339,4312.7,4312.6,0.4204]
[1757040407010,0.6339,4312.7,4312.6,0.7161]
[1757040407204,0.5181,4312.7,4312.6,0.7161]
[1757040407607,0.3207,4313.0,4312.7,0.2957]
[1757040407916,0.5181,4313.0,4312.9,0.7342]
[1757040408114,0.8487,4313.0,4312.9,0.7342]
[1757040408614,0.8487,4313.0,4312.7,0.236]
[1757040409010,0.1975,4312.2,4312.1,0.7205]
[1757040409317,0.4923,4312.2,4312.1,0.9565]
[1757040410014,0.2948,4312.2,4312.1,0.9565]
[1757040410208,0.1222,4313.0,4312.1,0.9565]
[1757040410404,0.2948,4312.9,4312.2,0.3138]
[1757040412619,0.7007,4312.9,4312.8,0.7205]
[1757040413324,0.4923,4312.9,4312.8,0.7205]
[1757040414512,0.2948,4313.1,4312.8,0.4067]
[1757040414717,0.2948,4313.1,4313.0,0.4067]
[1757040414918,0.2948,4313.1,4313.0,0.7205]
[1757040416121,0.4923,4313.1,4313.0,0.7205]
[1757040416425,3.3236,4313.2,4313.1,0.7205]
[1757040416614,3.7001,4313.2,4313.1,0.7205]
[1757040417209,3.2078,4313.9,4313.1,0.4067]
[1757040417515,3.4053,4313.9,4313.8,0.2099]
[1757040417816,3.6137,4313.9,4313.8,0.2099]
[1757040418120,3.9085,4313.9,4313.8,0.2099]
[1757040419023,3.9085,4313.9,4313.5,0.236]
[1757040421719,0.4059,4312.9,4312.8,0.5237]
[1757040421918,0.7007,4312.9,4312.8,0.9565]
[1757040422621,0.4923,4312.9,4312.8,0.9565]
[1757040425032,0.1222,4313.5,4312.8,0.6427]
[1757040425330,0.1222,4313.5,4313.3,0.7205]
[1757040425331,0.7007,4313.4,4313.3,0.7205]
[1757040426630,0.4923,4313.4,4313.3,0.7205]
[1757040427931,0.7007,4313.4,4313.3,0.7205]
[1757040428125,0.2948,4313.8,4313.3,0.4067]
[1757040428333,3.7001,4313.9,4313.8,0.7205]
[1757040429130,0.4923,4313.9,4313.8,0.7205]
[1757040430331,0.4106,4314.1,4313.9,0.3138]
[1757040430522,0.3133,4314.1,4314.0,0.9565]
[1757040430724,0.1975,4314.1,4314.0,0.9565]
[1757040430922,0.1975,4314.1,4314.0,0.4459]
[1757040430923,0.4059,4314.1,4314.0,0.4459]
[1757040431129,0.7007,4314.1,4314.0,0.4459]
[1757040433526,0.7007,4314.1,4314.0,0.236]
[1757040434926,0.4059,4313.3,4313.2,0.2099]
[1757040435123,0.4059,4313.3,4313.2,0.6427]
[1757040435351,0.4059,4313.3,4313.2,0.9565]
[1757040435528,0.7007,4313.3,4313.2,0.9565]
[1757040436226,0.7007,4313.3,4313.2,0.6427]
[1757040436427,0.4059,4313.1,4313.0,31.996]
[1757040436627,0.7007,4313.1,4313.0,32.232]
[1757040437527,0.7007,4313.1,4313.0,31.996]
[1757040437830,0.8322,4312.5,4312.4,3.6145]
[1757040438135,0.8322,4312.5,4312.4,3.8505]
[1757040438335,0.8322,4312.5,4312.4,4.1486]
[1757040441035,0.8322,4312.5,4312.4,3.8505]
[1757040441238,0.8322,4312.5,4312.4,3.6537]
[1757040441541,0.8322,4312.5,4312.4,4.1609]
[1757040442133,0.8322,4312.5,4312.4,3.8628]
[1757040442332,0.8322,4312.5,4312.4,3.6537]
[1757040442538,0.8322,4312.5,4312.4,0.236]
[1757040443326,0.8322,4312.5,4312.4,0.4372]
[1757040444337,0.8322,4312.5,4312.4,0.236]
[1757040445426,0.4075,4311.7,4311.6,31.994]
[1757040445641,0.7116,4311.7,4311.6,32.23]
[1757040445932,0.7116,4311.7,4311.6,32.5281]
[1757040450234,0.1237,4311.5,4310.8,0.2981]
[1757040450432,0.5036,4310.9,4310.8,0.7084]
[1757040450636,0.7116,4310.9,4310.8,0.6463]
[1757040451038,0.7116,4310.9,4310.8,0.9444]
[1757040457639,0.3041,4310.9,4310.8,0.9444]
[1757040457845,0.1237,4311.5,4311.0,0.4103]
[1757040458046,0.5312,4311.5,4311.4,0.2012]
[1757040458248,3.2078,4311.6,4311.4,1.53412526]
[1757040458441,3.4073,4311.6,4311.5,0.9444]
[1757040458639,3.7114,4311.6,4311.5,0.9444]
[1757040458834,3.9194,4311.6,4311.5,0.9444]
[1757040460944,3.2078,4311.6,4311.5,1.0688]
[1757040462350,3.5119,4311.6,4311.5,1.0688]
[1757040462946,3.2078,4311.6,4311.5,1.0688]
[1757040466356,0.42,4311.9,4311.5,1.0688]
[1757040466657,0.6195,4311.9,4311.8,1.53412526]
[1757040466857,0.5036,4311.9,4311.8,1.53412526]
[1757040467354,0.1222,4312.5,4311.8,1.53412526]
[1757040467559,0.1995,4312.2,4312.1,1.03482526]
[1757040467752,0.1995,4312.2,4312.1,1.23602526]
[1757040468057,0.7065,4312.2,4312.1,0.7031]
[1757040468259,0.7065,4312.2,4312.1,1.52882526]
[1757040470649,0.4985,4312.2,4312.1,1.52882526]
[1757040470845,0.1158,4312.4,4312.3,0.3913]
[1757040471053,0.299,4312.7,4312.4,0.2928]
[1757040471253,0.5107,4312.7,4312.6,1.50982526]
[1757040471554,0.5107,4312.7,4312.3,0.236]
[1757040471555,0.7227,4312.7,4312.3,1.06172526]
[1757040471750,0.7227,4312.4,4312.3,1.25852526]
[1757040472962,0.7227,4312.4,4312.3,1.74582526]
[1757040480266,0.8448,4312.0,4311.9,0.1968]
[1757040480473,0.8448,4312.0,4311.9,0.6273]
[1757040480766,0.8448,4312.0,4311.9,0.9201]
[1757040480965,0.1221,4312.5,4312.0,0.2928]
[1757040481167,0.1158,4312.6,4312.5,0.8082]
[1757040481356,0.299,4312.6,4312.5,0.7514]
[1757040481555,0.5107,4312.6,4312.5,0.9201]
[1757040482669,0.5107,4312.6,4312.5,1.74582526]
[1757040482861,0.4148,4312.8,4312.6,0.2928]
[1757040483068,0.8385,4312.8,4312.5,1.18582526]
[1757040483370,0.5395,4312.8,4312.7,0.1968]
[1757040483564,0.4237,4312.8,4312.5,0.236]
[1757040483765,0.4237,4312.6,4312.5,0.4328]
[1757040483964,0.7227,4312.6,4312.5,0.4328]
[1757040486170,0.5107,4312.6,4312.5,0.9201]
[1757040488774,0.299,4312.6,4312.5,0.9201]
[1757040489165,0.299,4312.7,4312.6,0.2928]
[1757040489371,0.299,4312.7,4312.6,1.50982526]
[1757040490976,0.5107,4312.7,4312.6,1.50982526]
[1757040493180,0.1158,4312.8,4312.7,0.41733]
[1757040493475,3.5068,4313.7,4313.6,0.3913]
[1757040493680,3.5068,4313.7,4313.6,1.74582526]
[1757040496275,0.31188209,4315.0,4313.6,4.66082526]
[1757040496276,0.299,4313.9,4313.6,4.66082526]
[1757040496482,0.299,4313.9,4313.8,1.50982526]
[1757040496683,0.5107,4313.9,4313.8,1.50982526]
[1757040496881,0.7227,4313.9,4313.8,0.3913]
[1757040497081,0.4237,4313.9,4313.7,0.82572526]
[1757040497277,0.7227,4313.8,4313.7,0.82572526]
[1757040497682,0.7227,4313.8,4313.7,1.02252526]
[1757040498986,0.7227,4313.8,4313.7,1.55712526]
[1757040500778,0.3076,4314.4,4313.7,1.23702526]
[1757040500980,0.7034,4314.2,4314.1,1.55472526]
[1757040501179,0.7034,4314.2,4314.1,1.79072526]
[1757040501381,0.5067,4314.2,4314.1,1.79072526]
[1757040501580,0.3076,4314.4,4314.3,0.729]
[1757040501781,0.3076,4314.4,4314.3,1.55472526]
[1757040502381,3.2078,4314.5,4314.3,1.23462526]
[1757040502588,0.3076,4314.7,4314.4,0.729]
[1757040502785,0.1967,4314.8,4314.7,0.729]
[1757040502981,0.7034,4314.8,4314.7,0.729]
[1757040504489,0.7034,4314.8,4314.7,0.4089]
[1757040512287,0.7034,4314.8,4314.5,0.236]
[1757040512586,0.7034,4313.9,4313.8,0.729]
[1757040512988,0.7034,4313.9,4313.8,0.965]
[1757040513986,0.3076,4313.9,4313.8,0.965]
[1757040514293,0.7034,4314.4,4314.3,0.1944]
[1757040514491,0.7034,4314.4,4314.3,1.60480824]
[1757040514691,0.7034,4314.4,4314.3,1.92490824]
[1757040514991,0.7034,4314.4,4314.3,1.39030824]
[1757040517484,0.7034,4314.4,4314.3,1.92490824]
[1757040517685,3.2078,4314.8,4314.3,1.92490824]
[1757040517887,3.9112,4314.8,4314.7,0.4089]
[1757040518091,3.9112,4314.8,4314.7,0.965]
[1757040519388,3.9112,4314.8,4314.7,0.4304]
[1757040520494,0.7034,4314.8,4314.7,0.4304]
[1757040521591,0.7034,4314.8,4314.7,1.71040824]
[1757040521794,0.7034,4314.8,4314.7,1.92490824]
[1757040522486,0.5067,4314.8,4314.7,1.92490824]
[1757040523290,3.2078,4315.3,4314.7,1.92490824]
[1757040523291,0.5067,4315.2,4315.1,0.4089]
[1757040523490,0.5067,4315.2,4315.1,1.68890824]
[1757040524598,0.7034,4315.2,4315.1,1.68890824]
[1757040528602,0.5067,4315.2,4315.1,1.68890824]
[1757040529601,3.2078,4315.3,4315.2,0.3049]
[1757040529798,0.3061,4315.4,4315.3,0.7186]
[1757040530698,3.2078,4315.8,4315.3,0.7186]
[1757040530899,0.5108,4315.7,4315.6,0.7186]
[1757040531803,3.5139,4315.8,4315.7,0.7186]
[1757040532000,3.5139,4315.8,4315.7,0.9546]
[1757040532507,3.7186,4315.8,4315.7,0.9546]
[1757040532805,0.5108,4315.8,4315.7,0.9546]
[1757040534200,0.3061,4315.8,4315.7,0.9546]
[1757040535306,0.5108,4315.8,4315.7,0.9546]
[1757040536207,0.7091,4315.8,4315.7,0.9546]
[1757040538907,0.7091,4315.8,4315.7,0.4475]
[1757040539110,0.5108,4314.9,4314.8,6.83970197]
[1757040539302,0.3061,4315.4,4314.8,4.81740824]
[1757040539515,0.2047,4315.3,4315.2,1.37360824]
[1757040539711,0.7091,4315.3,4315.2,1.67850824]
[1757040540116,0.7091,4315.3,4315.2,1.91450824]
[1757040540409,0.7091,4315.3,4315.2,1.60960824]
[1757040540815,0.7091,4315.3,4315.2,0.6497]
[1757040543009,0.7091,4315.3,4315.2,0.236]
[1757040543216,0.3061,4314.8,4314.6,0.95990824]
[1757040543407,0.3061,4314.8,4314.7,32.222]
[1757040547915,0.1189,4314.5,4313.9,0.95990824]
[1757040548124,0.828,4314.0,4313.9,1.67850824]
[1757040548418,0.828,4314.0,4313.9,1.91450824]
[1757040548822,0.3061,4314.4,4313.9,1.60960824]
[1757040549119,0.5108,4314.1,4314.0,0.7186]
[1757040549622,0.3061,4314.1,4314.0,0.7186]
[1757040549917,0.3061,4314.4,4314.1,0.3049]
[1757040550121,0.5108,4314.4,4314.3,0.7186]
[1757040550311,0.7091,4314.4,4314.3,0.7186]
[1757040554224,0.7091,4314.4,4314.3,0.4137]
[1757040554529,0.7091,4314.4,4314.3,0.2115]
[1757040560638,0.7091,4314.4,4314.3,0.7299]
[1757040561332,0.7091,4314.4,4314.3,1.68980824]
[1757040563832,0.7091,4314.4,4314.3,0.4204]
[1757040564930,0.7091,4314.4,4314.2,0.235]
[1757040565128,4.14069,4314.3,4314.2,0.235]
[1757040565327,3.9089,4314.3,4314.2,0.235]
[1757040566130,3.9089,4314.3,4313.5,3.2078]
[1757040566333,0.7011,4313.1,4313.0,1.38140824]
[1757040566630,0.7011,4313.1,4313.0,1.61640824]
[1757040566835,0.7011,4313.1,4313.0,1.92590824]
[1757040567639,0.5261,4313.5,4313.4,0.2126]
[1757040567825,0.5261,4313.5,4313.4,1.17250824]
[1757040568027,0.5261,4313.5,4313.4,1.40750824]
[1757040568340,0.8187,4313.5,4313.4,0.235]
[1757040568638,0.8187,4313.5,4313.4,0.4476]
[1757040568842,0.8187,4313.5,4313.4,0.235]
[1757040570436,0.8187,4313.5,4313.4,0.4476]
[1757040572741,0.8187,4313.5,4313.4,0.966]
[1757040574133,0.8187,4313.5,4313.4,0.4476]
[1757040574841,0.8187,4313.5,4313.4,0.7571]
[1757040575529,0.4948,4313.5,4313.4,0.966]
[1757040575845,0.4948,4313.7,4313.6,0.731]
[1757040576344,0.4948,4313.7,4313.6,1.55574282]
[1757040576735,3.2078,4313.8,4313.7,0.3095]
[1757040576939,3.2078,4313.8,4313.7,0.731]
[1757040577141,3.7026,4313.8,4313.7,0.731]
[1757040577444,3.9089,4313.8,4313.7,1.03734282]
[1757040579349,3.9089,4313.8,4313.7,1.24624282]
[1757040579548,3.9089,4313.8,4313.7,1.55574282]
[1757040579844,0.7011,4313.8,4313.7,1.24624282]
[1757040580046,0.7011,4313.8,4313.7,1.03734282]
[1757040580440,0.7011,4313.8,4313.7,1.55574282]
[1757040582443,0.7011,4313.8,4313.7,0.2126]
[1757040582646,0.2926,4313.7,4313.6,0.82474282]
[1757040582940,0.7011,4313.7,4313.6,1.55574282]
[1757040583141,0.7011,4313.7,4313.6,1.24624282]
[1757040583542,0.7011,4313.7,4313.6,1.55574282]
[1757040584153,0.7011,4313.7,4313.6,1.03734282]
[1757040585151,0.7011,4313.7,4313.6,1.55574282]
[1757040589961,3.2078,4313.9,4313.6,1.24624282]
[1757040590254,10.04293612,4315.9,4313.6,1.24624282]
[1757040590255,0.3178,4314.6,4314.5,0.2019]
[1757040590452,0.5122,4314.6,4314.5,0.41]
[1757040590759,0.7185,4314.6,4314.5,0.7256]
[1757040591961,0.5122,4314.6,4314.5,0.7256]
[1757040596366,0.7185,4314.6,4314.5,0.7256]
[1757040601467,0.7185,4314.6,4314.5,0.41]
[1757040602773,0.7185,4314.6,4314.5,0.7256]
[1757040604473,0.3178,4314.6,4314.5,0.7256]
[1757040604767,0.235,4315.2,4314.8,0.41]
[1757040604768,3.2078,4315.2,4314.8,0.41]
[1757040604970,3.72,4315.2,4315.1,1.23474282]
[1757040605160,3.72,4315.2,4315.1,1.55034282]
[1757040605358,0.5122,4315.2,4315.1,1.55034282]
[1757040605556,0.3178,4315.4,4315.2,0.3156]
[1757040605763,0.3178,4315.4,4315.3,1.55034282]
[1757040606566,0.3178,4315.4,4315.3,0.7256]
[1757040606765,0.3178,4315.4,4315.3,1.55034282]
[1757040607670,0.7185,4315.4,4315.3,1.55034282]
[1757040608774,0.7185,4315.4,4314.9,0.235]
[1757040608775,0.8374,4315.0,4314.9,0.5175]
[1757040609072,0.7185,4315.0,4314.9,1.78534282]
[1757040609466,0.5122,4315.0,4314.9,1.78534282]
[1757040609666,0.3178,4315.0,4314.9,1.78534282]
[1757040609866,0.1189,4315.5,4315.0,0.3156]
[1757040610066,0.5196,4315.5,4315.4,0.2019]
[1757040610267,0.5196,4315.5,4315.4,1.02664282]
[1757040610468,0.8374,4315.5,4315.4,1.02664282]
[1757040612571,0.8374,4315.5,4315.4,0.82474282]
[1757040613973,0.8374,4315.5,4315.4,1.02664282]
[1757040614870,0.3178,4315.6,4315.5,0.3156]
[1757040615070,3.2078,4315.7,4315.5,1.26116]